[Event "44th Chess Olympiad Women 2022"]
[Site "Chennai"]
[Date "2022.07.30"]
[Round "2.30"]
[White "Pires, Luzia"]
[Black "Narva, Triin"]
[Result "1-0"]
[ECO "A48"]
[WhiteElo "1842"]
[BlackElo "2066"]
[Annotator "TA"]
[PlyCount "115"]
[EventDate "2022.07.29"]
[EventType "team-tourn"]
[EventCountry "IND"]
[SourceTitle "playchess.com"]
[Source "ChessBase"]
[SourceQuality "1"]
[WhiteTeam "Angola"]
[BlackTeam "Estonia"]
[WhiteTeamCountry "ANG"]
[BlackTeamCountry "EST"]
[TimeControl "40/5400+30:1800+30"]

{[%evp 11,115,-9,0,-14,0,0,0,-27,-25,-36,-49,-93,-16,-67,-20,-44,-44,-52,-29,-36,0,-12,-10,-10,-11,-25,-12,-29,-31,-30,0,-14,-19,-20,44,41,82,9,18,13,11,3,14,0,35,0,0,-104,-28,-33,-19,-62,-66,-129,-56,-224,-222,-237,-160,-158,-68,-55,-55,-58,-47,-42,-47,-48,-50,-51,-4,-11,0,0,0,0,0,0,0,0,0,0,0,0,111,90,281,283,294,293,454,461,447,414,414,379,376,340,1681,1527,29981,1022,29986,1009,1008,990]} 1. d4 {[%emt 0:00:10]} g6 {[%emt 0:00:13]} 2. Nf3 {[%emt 0:00:38]} Bg7 {[%emt 0:00:21]} 3. e3 {[%emt 0:00:53]} d6 {[%emt 0:01:18]} 4. Bd3 {[%emt 0:02:32]} Nf6 {[%emt 0:02:15]} 5. Nbd2 {[%emt 0:04:31]} O-O {[%emt 0:02:24]} 6. O-O {[%emt 0:00:19]} c5 {[%emt 0:06:54]} 7. b3 {[%emt 0:06:43] A48: 1 d4 Nf6 2 Nf3 g6: Torre, London and Colle Systems.} cxd4 {[%emt 0:17:48]} 8. exd4 {[%emt 0:00:16]} Nc6 {[%emt 0:00:26]} 9. c3 {[%emt 0:01:54] [#] The position is equal.} Nd5 $146 {[%emt 0:07:53]} ({Predecessor:} 9... e5 10. Re1 Re8 11. dxe5 dxe5 12. Ne4 Nxe4 13. Bxe4 Bg4 14. Bb2 f5 15. Bd5+ Kh8 16. Qd2 Bxf3 17. gxf3 Qh4 18. c4 Bh6 19. Qe2 Bf4 {0-1 (19) Becker,C (2006)-Calzetta Ruiz,M (2230) Colonia de Sant Jordi 2022}) 10. Bb2 {[%emt 0:07:39]} Nf4 {[%emt 0:03:20]} 11. Bc2 {[%emt 0:01:26]} Bg4 {[%emt 0:15:41]} (11... e5 $1 $17) 12. h3 $11 {[%emt 0:08:25]} Bc8 {[%emt 0:07:15]} (12... Bh5 $15) 13. Kh2 {[%emt 0:22:12]} Qd7 {[%emt 0:02:08]} 14. Ng1 {[%emt 0:00:56]} d5 {[%emt 0:02:16]} 15. Ndf3 {[%emt 0:03:42]} Qd6 {[%emt 0:04:46]} (15... b5 {seems wilder.} 16. Re1 a5 17. Qd2 Qd6) 16. Kh1 {[%emt 0:04:11]} Bd7 {[%emt 0:04:29]} 17. Re1 {[%emt 0:04:31]} Rac8 {[%emt 0:01:23]} 18. a3 {[%emt 0:00:41]} b5 {[%emt 0:06:50]} 19. Ne2 {[%emt 0:01:52]} Nh5 {[%emt 0:01:19][%cal Bf4h5,Bh5f6,Bf6e4][%mdl 32]} 20. Qd2 {[%emt 0:02:32]} f5 {[%emt 0:02:27]} 21. Bd3 {[%emt 0:01:04]} Nf6 {[%emt 0:03:39]} 22. Qf4 {[%emt 0:01:59]} ({Of course not} 22. Bxb5 Ne4 23. Qf4 e5 $15) 22... Qxf4 {[%emt 0:04:11]} (22... Na5 $11) 23. Nxf4 $14 {[%emt 0:00:22]} Bh6 {[%emt 0:00:56]} 24. Ne2 {[%emt 0:04:51] White is more active.} ({White should try} 24. Bc1 $1 $16) 24... Ne4 $11 {[%emt 0:00:24]} 25. Kg1 {[%emt 0:00:38]} Na5 {[%emt 0:00:43]} 26. Bc2 {[%emt 0:01:02]} Be8 {[%emt 0:00:26]} 27. Rad1 {[%emt 0:03:54]} Rf6 {[%emt 0:01:29]} 28. Rd3 {[%emt 0:01:38]} Rb6 {[%emt 0:00:31][%cal Oa5c4]} 29. Red1 {[%emt 0:03:32] [#]} (29. Rdd1 $11) 29... Nc6 {[%emt 0:00:35]} (29... Nc4 $1 $17 {[%cal Rc4b2][%mdl 512]} 30. Bc1 (30. bxc4 $2 bxc4 31. Bc1 cxd3 $19) 30... Bxc1 31. Rxc1 Nxa3) 30. Bc1 {[%emt 0:02:37]} Bg7 {[%emt 0:00:09][%cal Ob5b4]} 31. Nf4 {[%emt 0:03:50]} Bf7 {[%emt 0:00:11][%cal Ob5b4]} 32. Re1 {[%emt 0:01:05]} (32. b4 $15) 32... a5 {[%emt 0:00:55]} ({Better is} 32... b4 $1 $17 {Strongly threatening ...Ra6.} 33. Ne2 Ra6) 33. Ne5 $2 {[%emt 0:02:10]} ({White should play} 33. Ne2 $15) 33... Nxe5 $19 {[%emt 0:00:40]} 34. dxe5 {[%emt 0:00:17]} Bxe5 {[%emt 0:00:35]} ({And not} 34... Rxc3 35. Rxc3 Nxc3 36. Be3 $17) 35. Nxd5 {[%emt 0:00:39]} Bxd5 {[%emt 0:00:14]} (35... Rb7 $1 $17 {Threatens to win with ...e6.} 36. Bh6 e6) 36. Rxd5 $15 {[%emt 0:00:07]} Bxc3 {[%emt 0:00:11]} 37. Red1 {[%emt 0:00:39]} Nf6 {[%emt 0:00:09] Against g4} 38. Rd8+ {[%emt 0:01:22]} Rxd8 {[%emt 0:00:03]} 39. Rxd8+ {[%emt 0:00:03]} Kg7 {[%emt 0:01:53]} 40. Be3 {[%emt 0:00:55]} Rc6 {[%emt 0:00:34]} (40... Rd6 $15 41. Rxd6 exd6) 41. Bd3 $11 {[%emt 0:30:45]} b4 {[%emt 0:02:43]} 42. a4 {[%emt 0:00:00]} Be5 {[%emt 0:05:54]} 43. g3 {[%emt 0:00:00] Against f4} Rc3 {[%emt 0:13:19]} 44. Bc4 {[%emt 0:00:00]} Bc7 {[%emt 0:04:09]} 45. Ra8 {[%emt 0:00:00]} Bxg3 $1 {[%emt 0:01:45]} 46. Rxa5 {[%emt 0:00:00] aiming for Rb5.} Bd6 {[%emt 0:00:43]} 47. Rb5 {[%emt 0:00:00]} f4 {[%emt 0:03:23]} (47... Rc2 $1 $11 {remains equal.}) 48. Bd4 $16 {[%emt 0:00:00] This bishop pair is nice.} Rxh3 {[%emt 0:00:49]} (48... Rc1+ $16 49. Kg2 Rd1) 49. Kg2 $18 {[%emt 0:00:00]} Rh4 {[%emt 0:00:39][%cal Of4f3] [#] ...f3+! is the strong threat.} 50. f3 $1 {[%emt 0:00:00] Hoping for a5.} Rh5 {[%emt 0:01:21]} (50... Kh6 {was worth a try.} 51. a5 Rh5 52. Rxh5+ gxh5) 51. Rxh5 {[%emt 0:00:00]} gxh5 {[%emt 0:00:03][%mdl 4096] Endgame [#] KBB-KBN} 52. a5 $1 {[%emt 0:00:00]} e5 {[%emt 0:00:37]} 53. Bg1 {[%emt 0:00:00]} Ne8 {[%emt 0:00:58]} 54. a6 {[%emt 0:00:00] Threatening mate with a7.} Nc7 $2 {[%emt 0:00:17]} (54... Bb8 55. a7 Bxa7 56. Bxa7 Nd6) 55. a7 {[%emt 0:00:00] White threatens Bd3 and mate.} Kf6 {[%emt 0:00:23] [#]} 56. Bd5 $1 {[%emt 0:00:00][%mdl 512]} h6 {[%emt 0:00:48] [#]} (56... Nxd5 57. a8=Q) 57. Bb6 $1 {[%emt 0:00:00]} Nxd5 {[%emt 0:00:36] [#]} 58. a8=Q $1 {[%emt 0:00:00] What a bad dream for Black.  Weighted Error Value: White=0.23 (precise) /Black=0.46} 1-0

[Event "44th Chess Olympiad Women 2022"]
[Site "Chennai"]
[Date "2022.07.30"]
[Round "2.31"]
[White "Cori T., Deysi"]
[Black "Shabanaj, Eglantina"]
[Result "1-0"]
[ECO "A05"]
[WhiteElo "2371"]
[BlackElo "1940"]
[Annotator "TA"]
[PlyCount "73"]
[EventDate "2022.07.29"]
[EventType "team-tourn"]
[EventCountry "IND"]
[SourceTitle "playchess.com"]
[Source "ChessBase"]
[SourceQuality "1"]
[WhiteTeam "Peru"]
[BlackTeam "Albania"]
[WhiteTeamCountry "PER"]
[BlackTeamCountry "ALB"]
[TimeControl "40/5400+30:1800+30"]

{[%evp 9,73,29,31,21,33,-10,42,25,63,64,72,58,60,53,79,50,93,102,134,111,126,128,144,147,249,268,260,248,248,202,325,226,437,503,593,597,585,582,570,581,564,474,549,331,1213,764,1247,1173,1154,1075,12818,6187,5691,5231,29975,29976,29976,29977,29977,29978,29968,1192,29992,29993,29998,29999]} 1. Nf3 {[%emt 0:00:05]} Nf6 {[%emt 0:00:09]} 2. b3 {[%emt 0:00:10]} e6 {[%emt 0:00:27]} 3. Bb2 {[%emt 0:00:15]} Be7 {[%emt 0:00:13]} 4. e4 {[%emt 0:04:36] [#]} Nxe4 $146 {[%emt 0:03:36]} ({Predecessor:} 4... c5 5. Nc3 O-O 6. Bd3 Nc6 7. e5 Nd5 8. Ne4 Qc7 9. Neg5 h6 10. Ne4 Nf4 11. O-O Nxd3 12. cxd3 {½-½ (74) Rocek,V (1115)-Chura,M (1235) IECC email 2018}) 5. Bxg7 {[%emt 0:00:11]} Rg8 {[%emt 0:00:04]} 6. Bb2 {[%emt 0:00:09] A05: Réti Opening: 1 Nf3 Nf6.} d5 {[%emt 0:03:39]} 7. d3 {[%emt 0:14:24]} Nf6 {[%emt 0:01:00]} ({Black should play} 7... Bf6 $11 8. Ne5 Nd7 9. dxe4 Nxe5) 8. Nbd2 {[%emt 0:01:45] White is slightly better.} Nbd7 {[%emt 0:02:55]} 9. g3 {[%emt 0:03:45]} b6 {[%emt 0:01:53]} 10. Bg2 {[%emt 0:00:36]} Bb7 {[%emt 0:01:05]} 11. a4 {[%emt 0:01:48]} a5 {[%emt 0:01:29]} 12. Nd4 {[%emt 0:01:03]} c5 {[%emt 0:14:39] Black is on the road to losing.} 13. Nb5 {[%emt 0:00:09]} Bc6 {[%emt 0:00:31]} 14. Qe2 {[%emt 0:01:44] White is more active.} Bxb5 {[%emt 0:02:32]} 15. axb5 {[%emt 0:00:02]} Qc7 {[%emt 0:02:14]} 16. c4 {[%emt 0:04:16]} O-O-O {[%emt 0:04:00]} (16... Rc8 $16 17. cxd5 Nxd5) 17. O-O $18 {[%emt 0:00:33] cxd5 is the strong threat.} Rde8 {[%emt 0:03:23]} 18. Rfe1 {[%emt 0:00:43]} h5 {[%emt 0:04:42]} 19. Qf3 {[%emt 0:02:12][%cal Ob3b4] [#] Threatens to win with b4!} h4 {[%emt 0:01:56]} (19... Rg5 $142 20. Qe2 Bd6) 20. cxd5 {[%emt 0:00:35]} exd5 {[%emt 0:02:16]} (20... Nxd5 21. Qxf7 Bf6) 21. b4 {[%emt 0:02:44]} ({Not} 21. Rxe7 Rxe7 22. Bxf6 Nxf6 $18) 21... hxg3 {[%emt 0:00:42]} 22. hxg3 {[%emt 0:00:04]} Bd8 {[%emt 0:07:33]} 23. Rec1 {[%emt 0:02:42]} Ne5 {[%emt 0:13:03]} 24. Bxe5 {[%emt 0:02:25]} Qxe5 {[%emt 0:01:07]} 25. bxc5 {[%emt 0:00:38]} bxc5 {[%emt 0:00:36]} 26. Nc4 {[%emt 0:02:21]} Qb8 {[%emt 0:03:49]} (26... Qe2) 27. b6 {[%emt 0:02:05]} Re6 {[%emt 0:03:16]} 28. Rxa5 {[%emt 0:01:35]} Bxb6 {[%emt 0:03:31]} 29. Nxb6+ {[%emt 0:00:07]} Rxb6 {[%emt 0:01:38]} 30. Raxc5+ {[%emt 0:00:13]} Kd8 {[%emt 0:00:47]} 31. Bh3 {[%emt 0:01:21] Intending Rc8+ and mate.} Qe5 {[%emt 0:02:49]} 32. d4 {[%emt 0:09:11]} Qxd4 {[%emt 0:03:51]} 33. Rc8+ {[%emt 0:00:55]} Ke7 {[%emt 0:00:38]} 34. Qa3+ {[%emt 0:00:02]} Rb4 {[%emt 0:03:36]} 35. Rxg8 {[%emt 0:00:50]} (35. R1c7+ $142 Kd6 {[#]} 36. Rc4 $3 {[%mdl 512]} Qd1+ 37. Kh2 Qb3 38. Qa6+ Rb6 39. R4c6+ Ke5 40. Rxb6 Qxb6 41. Qxb6 Rxc8 42. Bxc8) 35... Ne4 {[%emt 0:02:00]} 36. Rc7+ {[%emt 0:03:15]} Kf6 {[%emt 0:01:50]} 37. Qf3+ {[%emt 0:00:37] Weighted Error Value: White=0.26 (precise) /Black=0.72} 1-0

[Event "44th Chess Olympiad Women 2022"]
[Site "Chennai"]
[Date "2022.07.30"]
[Round "2.31"]
[White "Caballero Quijano, Mitzy Mishell"]
[Black "Caku, Kler"]
[Result "1-0"]
[ECO "E02"]
[WhiteElo "2035"]
[BlackElo "1626"]
[Annotator "TA"]
[PlyCount "87"]
[EventDate "2022.07.29"]
[EventType "team-tourn"]
[EventCountry "IND"]
[SourceTitle "playchess.com"]
[Source "ChessBase"]
[SourceQuality "1"]
[WhiteTeam "Peru"]
[BlackTeam "Albania"]
[WhiteTeamCountry "PER"]
[BlackTeamCountry "ALB"]
[TimeControl "40/5400+30:1800+30"]

{[%evp 20,87,68,64,95,77,87,48,56,54,93,78,56,70,83,77,80,73,68,50,160,162,152,151,165,129,196,135,160,164,146,145,151,157,156,155,147,156,156,140,214,213,270,280,318,213,479,486,465,472,454,420,504,510,617,621,651,605,796,622,1110,935,977,941,933,825,822,812,961,955]} 1. d4 {[%emt 0:00:03]} d5 {[%emt 0:00:09]} 2. Nf3 {[%emt 0:00:05]} Nf6 {[%emt 0:00:11]} 3. c4 {[%emt 0:00:04]} e6 {[%emt 0:00:23]} 4. Qc2 {[%emt 0:00:12]} Be7 {[%emt 0:01:26]} 5. g3 {[%emt 0:00:05]} dxc4 {[%emt 0:01:27]} 6. Qxc4 {[%emt 0:00:12]} Nbd7 {[%emt 0:01:21]} 7. Bg2 {[%emt 0:00:08]} O-O {[%emt 0:01:26]} 8. O-O {[%emt 0:00:07]} c5 {[%emt 0:04:23]} 9. Rd1 {[%emt 0:01:11]} a6 {[%emt 0:16:45]} 10. Qc2 {[%emt 0:02:57]} cxd4 {[%emt 0:03:43]} 11. Nxd4 {[%emt 0:00:07]} Bc5 {[%emt 0:01:34] E02: Open Catalan: 5 Qa4+.} 12. Nc3 {[%emt 0:07:16]} (12. Na3 {looks sharper.} e5 13. Nf5 Ng4 14. e3) 12... Qe7 {[%emt 0:06:30]} 13. Nb3 {[%emt 0:09:57]} Ba7 {[%emt 0:10:01] [#] White is slightly better.} 14. h3 $146 {[%emt 0:05:07]} ({Predecessor:} 14. Bd2 h6 15. Rac1 Rb8 16. a3 Re8 17. Na4 e5 18. Bb4 Qe6 19. Nbc5 Nxc5 20. Bxc5 Bxc5 21. Qxc5 {0-1 (29) Schlosser,P (2509)-Pulpan,J (2335) Pardubice 2016}) 14... Rb8 {[%emt 0:05:25]} 15. Bf4 {[%emt 0:00:39]} e5 {[%emt 0:01:39]} 16. Bg5 $36 {[%emt 0:00:18][%mdl 2048] White is more active.} h6 {[%emt 0:07:11]} 17. Nd5 {[%emt 0:08:15]} Qe6 {[%emt 0:01:45]} 18. Be3 {[%emt 0:02:57]} Bxe3 {[%emt 0:01:50]} 19. Nxe3 {[%emt 0:00:08]} (19. fxe3 Nxd5 20. Rxd5 Nf6 $11) 19... Nb6 {[%emt 0:05:15] [#]} (19... b6 $1 $14) 20. Qc7 $1 $16 {[%emt 0:01:59]} Nbd7 {[%emt 0:10:39]} 21. Rac1 {[%emt 0:05:43]} Qb6 {[%emt 0:02:24]} 22. Qc2 {[%emt 0:01:36]} Rd8 {[%emt 0:03:26]} (22... Qe6 $16 {is a better defense.} 23. g4 e4) 23. a4 {[%emt 0:02:12]} (23. Nf5 $18) 23... Nf8 {[%emt 0:02:34]} 24. a5 {[%emt 0:00:08]} Rxd1+ {[%emt 0:00:13]} 25. Rxd1 {[%emt 0:00:01]} ({Much less strong is} 25. Nxd1 $6 Qb4 $11) ({Resist} 25. Qxd1 $6 Qb4 $14) 25... Qa7 {[%emt 0:02:20]} 26. Nc4 {[%emt 0:00:43][%cal Be3c4,Bc4e5,Be5c6][%mdl 32] White is much more active.} Be6 {[%emt 0:01:41]} 27. Nxe5 {[%emt 0:02:31]} Rc8 {[%emt 0:00:57] Prevents Qc5.} 28. Qd3 {[%emt 0:00:09]} Qb8 {[%emt 0:01:55]} 29. f4 {[%emt 0:00:44]} b6 {[%emt 0:01:28]} (29... N6d7 $16) 30. Nc6 $18 {[%emt 0:10:53]} Qb7 {[%emt 0:03:37]} 31. Nbd4 {[%emt 0:04:30]} bxa5 {[%emt 0:01:31]} 32. Qa3 {[%emt 0:03:06] [#] Hoping for Ne7+.} Kh8 $2 {[%emt 0:00:47]} (32... Re8 33. e4 (33. Qxa5 Qxb2 34. e4 Bd7 $16) 33... Qb6 34. Nxa5 Rc8) 33. Ne7 {[%emt 0:01:08]} Qc7 {[%emt 0:00:32]} 34. Nxc8 {[%emt 0:00:10]} Qxc8 {[%emt 0:00:04]} 35. Nc6 {[%emt 0:01:30] Threatens to win with Rd8.} N8d7 {[%emt 0:00:54]} 36. Qxa5 {[%emt 0:01:10] White is clearly winning.} Qb7 {[%emt 0:00:33]} 37. b4 {[%emt 0:02:18]} Bb3 {[%emt 0:00:28]} 38. Rc1 {[%emt 0:01:09]} Be6 {[%emt 0:00:30]} 39. e3 {[%emt 0:00:42]} Qa8 {[%emt 0:00:32]} 40. f5 {[%emt 0:03:44]} Bb3 {[%emt 0:00:28]} 41. Rc3 {[%emt 0:30:14]} Bd1 {[%emt 0:30:29]} 42. Qa1 {[%emt 0:02:49]} Be2 {[%emt 0:00:24]} 43. Nd4 {[%emt 0:00:10][%csl LRa8,LRe2]} Qe8 {[%emt 0:00:37]} 44. Nxe2 {[%emt 0:00:12] Weighted Error Value: White=0.21 (precise) /Black=0.38} 1-0

[Event "44th Chess Olympiad Women 2022"]
[Site "Chennai"]
[Date "2022.07.30"]
[Round "2.31"]
[White "Shuqja, Klean"]
[Black "Chumpitaz, Ann"]
[Result "0-1"]
[ECO "B40"]
[WhiteElo "1883"]
[BlackElo "2278"]
[Annotator "TA"]
[PlyCount "78"]
[EventDate "2022.07.29"]
[EventType "team-tourn"]
[EventCountry "IND"]
[SourceTitle "playchess.com"]
[Source "ChessBase"]
[SourceQuality "1"]
[WhiteTeam "Albania"]
[BlackTeam "Peru"]
[WhiteTeamCountry "ALB"]
[BlackTeamCountry "PER"]
[TimeControl "40/5400+30:1800+30"]

{[%evp 9,78,12,12,10,9,6,5,9,1,2,10,-14,0,0,8,8,0,6,8,8,7,0,18,1,0,0,0,0,18,16,23,9,6,6,7,5,34,16,18,2,8,0,0,0,0,-24,-35,-21,-33,-30,-31,-66,-60,-140,-120,-180,-39,-210,-193,-471,-233,-279,-284,-290,-268,-594,-581,-2194,-4710,-12844,-12844]} 1. e4 {[%emt 0:00:02]} c5 {[%emt 0:00:08]} 2. Nf3 {[%emt 0:00:09]} e6 {[%emt 0:00:12]} 3. b3 {[%emt 0:00:19]} a6 {[%emt 0:01:50]} 4. Bb2 {[%emt 0:00:27]} Nc6 {[%emt 0:00:05]} 5. Be2 {[%emt 0:02:51]} d5 {[%emt 0:03:02]} 6. exd5 {[%emt 0:03:46] B40: Sicilian: 2...e6, Unusual lines.} exd5 {[%emt 0:01:43]} 7. d4 {[%emt 0:02:14]} Nf6 {[%emt 0:00:29]} 8. O-O {[%emt 0:03:57] The position is equal.} Be7 {[%emt 0:02:41]} 9. c4 {[%emt 0:13:18]} O-O {[%emt 0:05:14] [#]} 10. Na3 $146 {[%emt 0:11:11][%cal Bb1a3,Ba3c2,Bc2e3,Be3f5][%mdl 32]} (10. dxc5 {seems wilder.} dxc4 11. Bxc4 Bxc5 12. Nbd2) ({Predecessor:} 10. Nc3 dxc4 11. d5 Na5 12. bxc4 Bd6 13. Re1 Re8 14. Qc2 Bg4 15. Nd2 Bxe2 16. Nxe2 {0-1 (46) Elez,N (2207)-Rathnakaran,K (2458) Novi Sad 2016}) 10... cxd4 {[%emt 0:36:38]} 11. Nxd4 {[%emt 0:01:25]} Nxd4 {[%emt 0:02:16]} 12. Qxd4 {[%emt 0:00:56]} Qa5 {[%emt 0:06:33]} 13. Nc2 {[%emt 0:03:55]} dxc4 {[%emt 0:00:08]} 14. Bxc4 {[%emt 0:02:04]} Bf5 {[%emt 0:00:11]} 15. Ne3 {[%emt 0:03:04]} Rfd8 {[%emt 0:01:22]} 16. Qe5 {[%emt 0:05:14]} Qxe5 {[%emt 0:00:10]} 17. Bxe5 {[%emt 0:00:02]} Be4 {[%emt 0:00:19]} 18. a4 {[%emt 0:03:41]} Bc6 {[%emt 0:00:35]} 19. Nf5 {[%emt 0:02:13]} Bc5 {[%emt 0:02:28]} 20. Bxf6 {[%emt 0:17:47]} gxf6 {[%emt 0:00:04]} 21. Rac1 {[%emt 0:03:39]} Bf8 {[%emt 0:07:20]} 22. Rfe1 {[%emt 0:05:18]} Re8 {[%emt 0:04:18] Inhibits Ne7+.} 23. Rxe8 {[%emt 0:03:37]} Rxe8 {[%emt 0:00:06]} 24. h3 {[%emt 0:03:14][%cal Oc4a6]} Bd7 {[%emt 0:04:32]} 25. Ng3 {[%emt 0:03:11]} Rc8 {[%emt 0:04:40]} 26. Rd1 {[%emt 0:03:14]} Bxa4 {[%emt 0:03:21]} 27. Bxf7+ {[%emt 0:00:52]} Kxf7 {[%emt 0:00:05]} 28. bxa4 $11 {[%emt 0:00:04][%mdl 4096] Endgame KRB-KRN} b5 {[%emt 0:02:16]} 29. axb5 {[%emt 0:00:33]} axb5 {[%emt 0:00:04]} 30. Rd7+ {[%emt 0:02:41]} Ke6 {[%emt 0:00:04]} 31. Rb7 {[%emt 0:00:29]} (31. Rxh7 $15 b4 32. Ne2) 31... b4 $17 {[%emt 0:00:04] [#] White must now prevent ...Rc1+.} 32. Ne2 {[%emt 0:00:30] Inhibits Rc1+.} (32. Kf1 $17) 32... Rd8 {[%emt 0:01:34]} (32... Kd5 $19 {aiming for ...Kc4.} 33. Kf1 Rc2 34. Nf4+ Kc4 35. Rc7+ Bc5) 33. g4 $2 {[%emt 0:00:31] Now White is beyond hope.} (33. Nf4+ $1 $15 Ke5 34. g3) 33... Kd5 $19 {[%emt 0:02:38] ...Bc5 is the strong threat.} 34. Nf4+ $2 {[%emt 0:00:13]} (34. Kg2) 34... Kc4 {[%emt 0:00:21]} (34... Kc6 $142 35. Rf7 b3 36. Rxf6+ Kb5) 35. Ne6 {[%emt 0:00:46] [#]} Rd1+ $1 {[%emt 0:02:01]} 36. Kg2 {[%emt 0:00:01]} Bd6 {[%emt 0:00:09] Hoping for ...b3.} 37. Nc7 $2 {[%emt 0:01:00]} (37. g5 {is more resistant.} Re1 38. Nd8 fxg5 39. Nc6) 37... b3 {[%emt 0:00:34] Black is clearly winning.} 38. Nb5 {[%emt 0:00:25]} Bb4 {[%emt 0:00:11] And now ...b2 would win.} 39. Rc7+ {[%emt 0:00:33]} Kxb5 {[%emt 0:00:07] Weighted Error Value: White=0.77/Black=0.20 (precise)} 0-1

[Event "44th Chess Olympiad Women 2022"]
[Site "Chennai"]
[Date "2022.07.30"]
[Round "2.31"]
[White "Omeri, Eklea"]
[Black "Bravo Mallco, Kate Azumi"]
[Result "0-1"]
[ECO "D10"]
[WhiteElo "1718"]
[BlackElo "1958"]
[Annotator "TA"]
[PlyCount "78"]
[EventDate "2022.07.29"]
[EventType "team-tourn"]
[EventCountry "IND"]
[SourceTitle "playchess.com"]
[Source "ChessBase"]
[SourceQuality "1"]
[WhiteTeam "Albania"]
[BlackTeam "Peru"]
[WhiteTeamCountry "ALB"]
[BlackTeamCountry "PER"]
[TimeControl "40/5400+30:1800+30"]

{[%evp 9,78,-161,-156,-180,-139,-166,-119,-119,-111,-95,-97,-156,-141,-158,-155,-176,-106,-112,-97,-91,-34,-35,-35,-82,-97,-127,-119,-127,-55,-69,-39,-45,-26,-31,-34,-32,-37,-45,-16,-199,-57,-147,-128,-225,-227,-254,-244,-248,-154,-179,-161,-195,-188,-178,-183,-231,-196,-233,-221,-333,-330,-337,-336,-337,-329,-368,-372,-612,-606,-580,-579]} 1. d4 {[%emt 0:00:34]} d5 {[%emt 0:00:03]} 2. c4 {[%emt 0:00:10]} c6 {[%emt 0:00:07]} 3. Nc3 {[%emt 0:00:58]} dxc4 {[%emt 0:00:17]} 4. a4 {[%emt 0:00:06]} e5 {[%emt 0:00:16]} 5. d5 {[%emt 0:11:43]} Nf6 {[%emt 0:15:48]} 6. Bg5 {[%emt 0:09:40] D10: Slav Defence: 3 cxd5 (without early Nf3) and 3 Nc3.} cxd5 {[%emt 0:08:28]} 7. Bxf6 {[%emt 0:00:27]} Qxf6 {[%emt 0:00:03] [#]} (7... gxf6 $19 8. Qxd5 Qb6 9. Qb5+ Nc6) 8. Nxd5 $146 {[%emt 0:00:24] Black is better.} ({Predecessor:} 8. Qxd5 Nc6 9. Qxc4 Be6 10. Qb5 O-O-O 11. e3 Bb4 12. Bc4 a6 13. Bxe6+ Qxe6 14. Qe2 {0-1 (31) Day,J-Reed,A England 1992}) 8... Qc6 {[%emt 0:00:09] White must now prevent ...Na6.} 9. e4 {[%emt 0:01:49]} Be6 {[%emt 0:00:02]} 10. Rc1 {[%emt 0:14:30]} ({White should play} 10. Nf3 Nd7 11. Be2) 10... Bxd5 {[%emt 0:00:14]} 11. Qxd5 {[%emt 0:00:19]} Bb4+ {[%emt 0:05:11]} 12. Ke2 {[%emt 0:01:38]} Qxd5 {[%emt 0:03:58]} (12... Qh6 $19 13. Qxe5+ (13. Rxc4 $2 Nc6 $19) 13... Kf8) 13. exd5 {[%emt 0:00:01]} Na6 {[%emt 0:00:15]} 14. Rxc4 {[%emt 0:01:22]} Kd7 {[%emt 0:06:23]} (14... Rd8 $17 {And now ...0-0 would win.} 15. g3 Rxd5) 15. g3 $15 {[%emt 0:00:44]} Kd6 {[%emt 0:00:02][%cal Bd7d6,Bd6d5,Bd5e5][%mdl 32]} 16. b3 {[%emt 0:13:09]} (16. Bh3 $15) 16... Rhc8 {[%emt 0:01:36]} 17. Ke3 {[%emt 0:01:33]} f5 {[%emt 0:11:29]} 18. Nf3 {[%emt 0:05:19] [#]} Bc5+ {[%emt 0:12:56]} ({But not} 18... Kxd5 $6 19. Rxc8 f4+ 20. gxf4 exf4+ 21. Kxf4 Rxc8 22. Bc4+ Kc5 23. Rd1 $11) ({Black should try} 18... Nc7 $1 $17 19. Ng5 Nxd5+ 20. Kf3 h6 21. Nf7+ Ke6 22. Rxc8 Rxc8) 19. Ke2 {[%emt 0:00:55]} e4 {[%emt 0:06:37]} ({Much worse is} 19... Kxd5 $6 20. Bh3 Ke6 21. Rhc1 $11) 20. Ng5 {[%emt 0:02:39]} Kxd5 {[%emt 0:09:13] ...h6 is the strong threat.} 21. Bg2 {[%emt 0:02:28][%cal Rg5e4]} Bd4 $36 {[%emt 0:02:41][%mdl 2048] White is under pressure.} 22. Rhc1 {[%emt 0:04:11]} Rxc4 {[%emt 0:00:49] Dancing on a razor blade.} 23. bxc4+ {[%emt 0:00:35]} Ke5 {[%emt 0:01:34] Strongly threatening ...h6.} 24. Rb1 $2 {[%emt 0:02:12]} (24. Rd1 $11 {and White is okay.} Bb6 25. f4+ exf3+ 26. Bxf3) 24... b6 {[%emt 0:06:18]} (24... h6 $19 25. Nf7+ Ke6) 25. f3 {[%emt 0:06:45]} (25. Rd1 $15 Bc5 26. Nxh7) 25... h6 {[%emt 0:01:22]} 26. Nh3 {[%emt 0:00:50]} (26. Nf7+ $17 {only move.} Kf6 27. Nd6) 26... Rc8 $19 {[%emt 0:00:36]} 27. fxe4 {[%emt 0:01:13]} fxe4 {[%emt 0:00:22]} 28. Rb5+ {[%emt 0:01:56]} Rc5 {[%emt 0:03:10]} 29. Nf4 {[%emt 0:02:05] [#]} Bg1 $1 {[%emt 0:03:09]} 30. Bf1 {[%emt 0:04:25]} Nc7 {[%emt 0:00:43]} ({Worse is} 30... Bxh2 31. Kf2 $15) 31. Rxc5+ {[%emt 0:01:37]} Bxc5 {[%emt 0:00:02][%mdl 4096] Endgame KBN-KBN} 32. Kd2 {[%emt 0:03:13]} (32. Bg2 $142) 32... Bg1 {[%emt 0:01:07]} 33. h3 {[%emt 0:00:21]} Bf2 {[%emt 0:00:27]} 34. Ne2 {[%emt 0:00:23]} (34. Ng6+ {was worth a try.} Kf6 35. Nf4) 34... Ne6 {[%emt 0:00:02]} 35. Bg2 {[%emt 0:00:45]} Bd4 {[%emt 0:01:20]} 36. Bh1 {[%emt 0:01:43]} g5 {[%emt 0:01:03]} 37. Bg2 {[%emt 0:00:26]} Nc5 {[%emt 0:00:06]} 38. g4 $2 {[%emt 0:00:18]} (38. h4) 38... Nxa4 {[%emt 0:00:26]} 39. Ng3 {[%emt 0:00:19]} Nc5 {[%emt 0:01:01] Weighted Error Value: White=0.33/Black=0.25 (precise)} 0-1